bitfinex/quotes_ETHUSD_20240819
["timestamp","ask_amount","ask_price","bid_price","bid_amount"]
[1724092607686,0.55,2608.6,2608.3,0.47534353]
[1724092608939,4.38348,2608.6,2608.3,0.47534353]
[1724092609085,4.38348,2608.6,2608.3,0.09193953]
[1724092609086,3.83362,2608.5,2608.3,0.09193953]
[1724092609286,0.55,2608.4,2608.1,6.8342]
[1724092609631,0.55,2608.4,2608.1,3.8342]
[1724092610032,0.55,2608.4,2607.9,6.83443]
[1724092610033,2.15753365,2608.4,2607.9,6.83443]
[1724092610196,0.55,2608.4,2608.0,4.517723]
[1724092610528,0.55,2608.4,2608.1,3.83419]
[1724092612716,0.55,2608.4,2608.2,3.92580804]
[1724092612919,0.55,2608.5,2608.2,3.92580804]
[1724092613122,0.55,2608.6,2608.2,4.38667314]
[1724092613720,4.38351,2608.6,2608.2,4.38667314]
[1724092613924,4.38351,2608.6,2608.2,0.55268314]
[1724092614142,3.83369,2608.5,2608.2,0.09175804]
[1724092614313,4.38383,2608.4,2608.2,0.09175804]
[1724092614514,4.38383,2608.4,2607.9,6.83442]
[1724092615057,4.38383,2608.4,2608.0,0.09138251]
[1724092615264,3.83397,2608.3,2608.0,0.09138251]
[1724092615561,0.55,2608.2,2608.0,0.09138251]
[1724092617662,0.55,2608.2,2608.0,4.31826276]
[1724092617963,0.55,2608.4,2608.0,4.31826276]
[1724092618467,0.55,2608.4,2608.1,3.8342]
[1724092618975,0.55,2608.4,2608.2,3.92542251]
[1724092619123,1.60753365,2608.6,2608.4,3.8337]
[1724092619324,1.60753365,2608.7,2608.5,3.8336]
[1724092619526,1.60753365,2608.9,2608.6,3.83345]
[1724092619925,4.02209465,2609.0,2608.6,3.83345]
[1724092620150,1.60753365,2608.9,2608.7,0.09138251]
[1724092620350,4.02209465,2609.0,2608.7,0.09138251]
[1724092620549,4.02209465,2609.0,2608.4,7.66737]
[1724092620863,1.60753365,2608.9,2608.5,5.01386574]
[1724092621021,1.73239465,2609.0,2608.8,3.83318]
[1724092621229,0.124861,2609.0,2608.9,3.83303]
[1724092621446,0.124861,2609.0,2608.9,8.663161]
[1724092622023,0.124861,2609.0,2608.9,11.663161]
[1724092622333,0.124861,2609.0,2608.9,15.496191]
[1724092622530,0.124861,2609.0,2608.9,17.995691]
[1724092623334,0.124861,2609.0,2608.9,21.982691]
[1724092623677,0.124861,2609.0,2608.9,25.815721]
[1724092624066,0.124861,2609.0,2608.9,21.982691]
[1724092624377,0.124861,2609.0,2608.9,17.995691]
[1724092625780,0.124861,2609.0,2608.9,21.982691]
[1724092626096,0.124861,2609.0,2608.9,25.815721]
[1724092626239,0.124861,2609.0,2608.9,21.982691]
[1724092626435,0.124861,2609.0,2608.9,25.815721]
[1724092626841,0.124861,2609.0,2608.9,17.995691]
[1724092627067,0.124861,2609.0,2608.9,14.162661]
[1724092627586,0.124861,2609.0,2608.9,17.995691]
[1724092627737,0.124861,2609.0,2608.9,18.08619795]
[1724092628675,0.124861,2609.0,2608.9,14.25316795]
[1724092628885,0.124861,2609.0,2608.9,18.08619795]
[1724092631854,0.124861,2609.0,2608.9,15.58669795]
[1724092632239,0.124861,2609.0,2608.9,17.96699795]
[1724092633700,0.124861,2609.0,2608.9,1.08760795]
[1724092633883,0.124861,2609.0,2608.9,7.75656695]
[1724092634440,0.124861,2609.0,2608.9,0.09050695]
[1724092635153,0.124861,2609.0,2608.9,3.92353695]
[1724092635358,0.124861,2609.0,2608.9,6.92353695]
[1724092636267,0.124861,2609.0,2608.9,10.75656695]
[1724092636470,0.124861,2609.0,2608.9,11.83222364]
[1724092639486,0.124861,2609.0,2608.9,7.99919364]
[1724092640193,0.124861,2609.0,2608.9,11.83222364]
[1724092641129,2.523761,2609.0,2608.9,7.99919364]
[1724092641332,0.124861,2609.0,2608.9,7.99919364]
[1724092641834,3.957741,2609.0,2608.9,0.09050695]
[1724092642035,10.645021,2609.0,2608.9,0.09050695]
[1724092642336,2.979261,2609.0,2608.9,0.09003148]
[1724092642552,6.812151,2609.0,2608.6,3.8334]
[1724092642760,0.55,2608.9,2608.6,0.766689]
[1724092643449,0.55,2608.9,2608.6,3.766689]
[1724092643650,0.55,2608.9,2608.6,7.600039]
[1724092644152,0.55,2608.9,2608.7,3.8333]
[1724092644357,0.55,2608.9,2608.7,3.83325]
[1724092644530,0.55,2608.9,2608.7,4.9765939]
[1724092645454,0.55,2608.9,2608.7,3.83325]
[1724092645660,0.55,2608.9,2608.6,6.83345]
[1724092646060,0.55,2608.9,2608.6,3.0]
[1724092646967,0.55,2608.9,2608.7,3.83331]
[1724092647111,0.55,2608.9,2608.7,3.83324]
[1724092647312,0.55,2608.9,2608.8,7.66636]
[1724092647925,0.124861,2609.0,2608.9,3.83303]
[1724092648161,0.674861,2609.0,2608.8,3.83316]
[1724092648547,0.674861,2609.0,2608.6,3.83339]
[1724092648752,3.0286,2608.9,2608.5,3.8336]
[1724092649073,3.0286,2608.9,2608.6,3.0]
[1724092650272,3.8332,2608.8,2608.6,3.0]
[1724092650569,2.4551,2608.6,2608.0,6.83426]
[1724092650774,3.83389,2608.4,2607.9,3.83439]
[1724092651073,3.83389,2608.4,2608.0,0.766894]
[1724092651438,0.55,2608.3,2608.0,0.766894]
[1724092651756,0.55,2608.3,2607.8,3.83461]
[1724092651757,2.4551,2608.2,2607.8,3.83461]
[1724092652073,2.4551,2608.2,2607.8,3.83455]
[1724092652074,0.55,2608.1,2607.8,3.83455]
[1724092652252,0.55,2608.1,2607.9,3.83443]
[1724092652661,0.55,2608.1,2607.8,3.83458]
[1724092652887,0.55,2608.1,2607.9,3.83449]
[1724092653759,0.55,2608.1,2608.0,3.83435]
[1724092654659,0.55,2608.1,2607.9,3.83442]
[1724092654878,0.55,2608.3,2607.9,3.83442]
[1724092656500,0.55,2608.3,2608.0,3.83434]
[1724092656796,0.55,2608.3,2608.2,3.83406]
[1724092657158,4.38362,2608.5,2608.1,3.83414]
[1724092657367,0.55,2608.4,2608.1,3.83414]
[1724092657708,0.55,2608.4,2608.2,0.08680149]
[1724092657873,0.55,2608.4,2608.3,3.83391]
[1724092658200,0.55,2608.6,2608.2,3.83405]
[1724092658512,0.55,2608.6,2608.3,7.75452149]
[1724092658711,0.55,2608.6,2608.3,3.92062149]
[1724092659523,0.55,2608.6,2608.3,0.08680149]
[1724092659666,0.55,2608.6,2608.3,3.92071149]
[1724092659855,0.55,2608.6,2608.3,3.92063149]
[1724092660260,0.55,2608.6,2608.3,0.08680149]
[1724092660862,0.55,2608.6,2608.3,3.92067149]
[1724092661179,0.55,2608.6,2608.5,3.83362]
[1724092661380,7.09,2608.9,2608.5,3.83362]
[1724092661381,0.55,2608.8,2608.5,3.83362]
[1724092661710,0.55,2608.8,2608.5,3.92069049]
[1724092662260,0.55,2608.8,2608.6,3.83347]
[1724092662506,0.124861,2609.0,2608.8,3.83304]
[1724092662809,0.124861,2609.0,2608.7,6.92026413]
[1724092663003,0.124861,2609.0,2608.9,0.08687655]
[1724092663692,0.124861,2609.0,2608.6,0.77541605]
[1724092663693,0.124861,2609.0,2608.6,7.66672]
[1724092663860,0.55,2608.9,2608.7,3.0]
[1724092664058,0.55,2608.9,2608.3,3.83378]
[1724092664059,2.3944,2608.8,2608.3,3.83378]
[1724092664301,2.3944,2608.8,2608.4,3.83369]
[1724092664503,0.55,2608.7,2608.4,3.83369]
[1724092665308,0.55,2608.7,2608.5,3.83355]
[1724092665662,4.38333,2608.7,2608.3,3.83388]
[1724092665897,0.55,2608.7,2608.4,3.83374]
[1724092666102,0.55,2608.7,2608.4,3.8337]
[1724092666311,0.55,2608.7,2608.4,3.83366]
[1724092666478,0.55,2608.7,2608.4,4.7070982]
[1724092667398,0.55,2608.7,2608.3,4.900672]
[1724092667655,4.38333,2608.7,2608.3,4.900672]
[1724092667787,4.38333,2608.7,2608.2,3.83394]
[1724092667990,4.38333,2608.7,2608.3,3.0]
[1724092668192,4.38333,2608.7,2608.2,6.83398]
[1724092668766,8.21675,2608.7,2608.2,6.83398]
[1724092669235,4.38333,2608.7,2608.2,6.83398]
[1724092669664,8.21673,2608.7,2608.2,6.83398]
[1724092669863,4.38333,2608.7,2608.2,6.83398]
[1724092670059,4.38333,2608.7,2608.3,3.8339]
[1724092670307,0.55,2608.7,2608.3,3.8339]
[1724092670476,0.55,2608.7,2608.5,3.8336]
[1724092670807,0.55,2608.7,2608.4,3.83375]
[1724092671711,0.55,2608.7,2608.5,3.83359]
[1724092671913,0.55,2608.7,2608.5,4.600324]
[1724092672812,0.55,2608.7,2608.6,0.08687655]
[1724092674314,0.55,2608.7,2608.6,0.08673265]
[1724092674485,4.38332,2608.7,2608.3,3.83378]
[1724092674691,4.38332,2608.7,2608.4,0.08646471]
[1724092674919,4.38332,2608.7,2608.2,6.83404]
[1724092675146,4.38332,2608.7,2608.5,0.08646471]
[1724092675315,4.38332,2608.7,2608.2,6.83404]
[1724092675527,4.38332,2608.7,2608.6,0.08646471]
[1724092675745,4.38332,2608.7,2608.3,7.66771]
[1724092675881,0.55,2608.7,2608.6,0.08646471]
[1724092676194,0.55,2608.7,2608.4,3.83367]
[1724092676389,0.55,2608.7,2608.6,0.08646471]
[1724092676595,0.55,2608.7,2608.3,3.83381]
[1724092676793,0.55,2608.7,2608.6,0.08646471]
[1724092676989,0.55,2608.7,2608.3,7.66765]
[1724092677190,0.55,2608.7,2608.6,0.08646471]
[1724092677887,0.55,2608.8,2608.6,3.91992471]
[1724092678078,6.282881,2609.0,2608.6,0.08646471]
[1724092678079,4.38308,2608.9,2608.6,0.08646471]
[1724092678319,0.55,2608.9,2608.5,3.83356]
[1724092678644,0.55,2608.9,2608.7,0.08646471]
[1724092678930,0.55,2608.9,2608.8,0.08646471]
[1724092679240,0.55,2608.9,2608.5,3.83356]
[1724092679534,0.55,2608.9,2608.7,3.8332]
[1724092679689,4.05749465,2609.0,2608.7,4.21652]
[1724092680218,4.05749465,2609.0,2608.8,0.08646471]
[1724092680737,4.05749465,2609.0,2608.9,0.08646471]
[1724092681029,4.05749465,2609.0,2608.6,7.66677]
[1724092681332,0.55,2608.9,2608.6,7.66677]
[1724092681730,0.55,2608.9,2608.7,3.83332]
[1724092681935,0.55,2608.9,2608.7,4.599989]
[1724092682433,0.55,2608.9,2608.2,4.066812]
[1724092682666,3.83319,2608.8,2608.2,6.83394]
[1724092682823,2.373,2608.6,2608.2,3.0]
[1724092683023,2.373,2608.6,2608.3,3.0]
[1724092683024,4.38368,2608.5,2608.3,3.0]
[1724092683207,4.38368,2608.5,2608.1,3.0]
[1724092683407,0.55,2608.5,2608.1,8.254622]
[1724092683849,0.55,2608.5,2608.1,4.420422]
[1724092684150,0.55,2608.5,2608.3,3.83377]
[1724092684634,2.15753365,2608.7,2608.3,3.83377]
[1724092684933,0.55,2608.7,2608.4,4.6005]
[1724092685139,2.15753365,2608.7,2608.4,4.6005]
[1724092685297,2.15753365,2608.7,2608.4,0.76678]
[1724092685496,2.4752,2608.6,2608.1,5.254622]
[1724092685837,2.4752,2608.6,2608.2,3.0]
[1724092686000,0.55,2608.5,2608.1,3.83419]
[1724092686196,0.55,2608.5,2608.2,3.0]
[1724092687822,0.55,2608.5,2608.3,0.08657731]
[1724092688263,2.15753365,2608.5,2608.3,0.08657731]
[1724092688434,0.55,2608.5,2608.3,4.61255404]
[1724092688637,0.55,2608.5,2608.3,0.77865404]
[1724092688828,0.55,2608.5,2608.3,4.61250404]
[1724092689026,0.55,2608.5,2608.4,3.83376]
[1724092689254,0.55,2608.5,2608.4,7.66752]
[1724092689438,0.55,2608.7,2608.5,3.83355]
[1724092689637,0.55,2608.7,2608.4,8.89859471]
[1724092689856,2.15753365,2608.7,2608.6,0.08673371]
[1724092690031,2.15753365,2608.7,2608.5,0.08672745]
[1724092690365,0.55,2608.7,2608.6,3.92019745]
[1724092690587,1.60753365,2608.9,2608.6,3.92019745]
[1724092690879,1.60753365,2608.9,2608.7,3.83326]
[1724092691197,2.12605145,2609.0,2608.9,3.83303]
[1724092691198,0.124861,2609.0,2608.9,3.83303]
[1724092691370,0.124861,2609.0,2608.9,7.66606]
[1724092691683,0.124861,2609.0,2608.9,7.7526811]
[1724092692888,0.124861,2609.0,2608.9,3.9196511]
[1724092693225,0.124861,2609.0,2608.9,4.69493721]
[1724092693815,0.124861,2609.0,2608.9,8.52796721]
[1724092695916,0.124861,2609.0,2608.9,14.00526721]
[1724092700852,0.124861,2609.0,2608.9,11.52796721]
[1724092701013,0.124861,2609.0,2608.9,11.52693999]
[1724092701343,0.124861,2609.0,2608.9,10.75165388]
[1724092705415,0.124861,2609.0,2608.9,14.58468388]
[1724092705721,0.124861,2609.0,2608.9,17.02258388]
[1724092705926,0.124861,2609.0,2608.9,20.85561388]
[1724092706126,0.124861,2609.0,2608.9,24.7330106]
[1724092706749,1e-06,2609.0,2608.9,24.7330106]
[1724092706950,1e-06,2609.0,2608.9,28.67608406]
[1724092707462,1e-06,2609.0,2608.9,26.67691827]
[1724092707647,1e-06,2609.0,2608.9,26.25477679]
[1724092707873,1e-06,2609.0,2608.9,26.67691638]
[1724092708062,1e-06,2609.0,2608.9,24.92188464]
[1724092708262,1e-06,2609.0,2608.9,26.25465258]
[1724092708577,1e-06,2609.0,2608.9,24.92188464]
[1724092708755,1e-06,2609.0,2608.9,26.25465213]
[1724092709477,1e-06,2609.0,2608.9,61.25465213]
[1724092709980,1e-06,2609.0,2608.9,59.92188464]
[1724092711289,2.2572,2610.3,2609.8,3.83162]
[1724092711487,0.55,2610.2,2609.9,3.83146]
[1724092711689,0.55,2610.2,2609.9,3.91709299]
[1724092711895,0.55,2610.2,2610.0,3.83127]
[1724092712099,0.55,2610.2,2610.0,3.83141]
[1724092712443,0.55,2610.2,2610.1,0.08563299]
[1724092713165,2.2572,2610.3,2610.1,0.08563299]
[1724092713373,2.2572,2610.3,2610.1,3.83126]
[1724092713553,2.2572,2610.3,2610.0,3.8314]
[1724092713741,2.2572,2610.3,2610.2,0.08563299]
[1724092713941,2.48292,2610.3,2610.2,0.08563299]
[1724092714174,2.48292,2610.3,2609.8,6.8317]
[1724092714382,2.48292,2610.3,2610.2,0.08563299]
[1724092714564,3.26592,2610.3,2610.2,0.08563299]
[1724092714769,2.4902,2610.1,2609.5,6.83201]
[1724092714969,0.55,2610.0,2609.5,10.66409]
[1724092715152,0.55,2610.0,2609.6,3.83199]
[1724092715483,0.55,2610.0,2609.7,6.83178]
[1724092716056,0.55,2610.0,2609.8,3.8317]
[1724092717064,0.55,2610.0,2609.8,7.6634]
[1724092717378,0.55,2610.0,2609.8,3.83162]
[1724092717916,0.55,2610.0,2609.9,0.08508923]
[1724092718065,2.4902,2610.1,2609.9,3.91664923]
[1724092718653,2.4902,2610.1,2609.9,0.08508923]
[1724092718881,2.4702,2610.1,2609.9,0.08508923]
[1724092719254,2.4702,2610.1,2609.9,3.91663923]
[1724092720067,3.83055,2610.6,2610.0,3.83141]
[1724092720270,0.55,2610.5,2610.0,3.83141]
[1724092720487,3.82989,2611.1,2609.7,3.0]
[1724092720488,3.83037,2610.8,2610.2,3.83105]
[1724092721047,3.83037,2610.8,2610.3,0.08508923]
[1724092721249,3.83037,2610.8,2610.2,3.83105]
[1724092721450,4.995113,2610.8,2610.4,0.08508923]
[1724092721653,4.38041,2610.7,2610.0,3.83138]
[1724092721915,2.3192,2610.6,2610.5,0.08508923]
[1724092722210,6.69983,2610.6,2610.5,0.08508923]
[1724092722346,4.38063,2610.6,2610.5,0.08508923]
[1724092722549,0.01237818,2610.9,2610.5,3.83065]
[1724092722550,2.2935,2610.9,2610.5,3.83065]
[1724092722854,2.2935,2610.9,2610.5,3.91573923]
[1724092723070,2.2935,2610.9,2610.5,3.91566923]
[1724092723552,2.2935,2610.9,2610.5,0.08508923]
[1724092723752,6.35295,2610.9,2610.5,0.08508923]
[1724092724008,0.55,2610.8,2610.5,0.08508923]
[1724092724247,0.55,2610.8,2610.6,0.08508923]
[1724092724535,0.55,2610.8,2610.4,3.0]
[1724092724684,0.55,2610.8,2610.1,3.8312]
[1724092724685,2.2896,2610.7,2610.1,3.8312]
[1724092724890,0.55,2610.6,2610.1,3.8312]
[1724092725202,0.55,2610.6,2610.2,3.0]
[1724092725534,0.55,2610.6,2610.2,6.8311]
[1724092725827,0.55,2610.6,2610.4,3.83075]
[1724092725998,0.55,2610.6,2610.5,3.83068]
[1724092726184,6.08358,2611.2,2610.6,3.83051]
[1724092726705,2.2539,2611.2,2610.7,7.66068]
[1724092726905,2.2539,2611.2,2610.8,3.83022]
[1724092728025,2.2539,2611.2,2610.8,7.66035]
[1724092728361,2.2539,2611.2,2611.0,3.82994]
[1724092728563,3.82923,2611.5,2610.8,3.83013]
[1724092728768,6.32718,2611.4,2610.8,3.83013]
[1724092729146,2.4978,2611.3,2610.6,3.83043]
[1724092729307,4.462368,2611.2,2610.4,3.8307]
[1724092729508,2.4978,2611.0,2610.5,6.83067]
[1724092729759,2.4978,2611.0,2610.6,3.83047]
[1724092730058,0.55,2610.9,2610.7,3.83035]
[1724092730367,0.55,2610.9,2610.7,4.896432]
[1724092731346,0.55,2610.9,2610.6,7.66091]
[1724092731847,0.55,2610.9,2610.7,3.83037]
[1724092732027,0.55,2610.9,2610.8,3.83024]
[1724092732654,0.55,2610.9,2610.8,3.91358508]
[1724092733559,2.843,2610.9,2610.8,0.08334508]
[1724092733714,3.1273,2610.9,2610.8,0.08334508]
[1724092733915,2.843,2610.9,2610.5,3.83066]
[1724092734217,2.843,2610.9,2610.6,3.0]
[1724092734530,2.843,2610.9,2610.6,0.08244268]
[1724092735415,6.67319,2610.9,2610.3,3.0]
[1724092735616,3.83048,2610.7,2610.3,3.0]
[1724092735830,0.55,2610.6,2610.3,3.0]
[1724092736442,0.55,2610.7,2610.3,3.0]
[1724092738235,0.55,2610.7,2610.4,3.83083]
[1724092738436,2.293,2610.9,2610.5,3.83066]
[1724092738748,7.09,2611.1,2610.6,6.83046]
[1724092739058,7.09,2611.1,2610.7,0.683046]
[1724092739224,7.09,2611.1,2610.6,10.66085]
[1724092739425,7.09,2611.1,2610.7,3.83037]
[1724092739937,0.55,2611.0,2610.7,3.83037]
[1724092740456,0.55,2611.0,2610.6,3.0]
[1724092740660,3.83003,2611.0,2610.5,3.0]
[1724092740859,0.55,2610.9,2610.5,3.0]
[1724092742542,0.55,2610.9,2610.5,6.83067]
[1724092742765,0.55,2611.1,2610.5,6.83067]
[1724092743651,0.55,2611.1,2610.6,3.83047]
[1724092743854,0.55,2611.1,2610.6,2.3894]
[1724092744052,9.5489,2611.4,2610.9,3.82997]
[1724092744236,9.5489,2611.4,2611.0,3.0]
[1724092744237,2.4589,2611.4,2611.0,3.0]
[1724092745239,0.55,2611.3,2611.0,6.82992]
[1724092746361,0.55,2611.3,2611.0,7.895918]
[1724092746568,0.55,2611.3,2611.0,6.82992]
[1724092747880,0.55,2611.3,2611.1,0.08256755]
[1724092751662,0.55,2611.3,2611.1,3.91235755]
[1724092752347,0.55,2611.5,2611.1,3.91235755]
[1724092754084,0.55,2611.5,2611.1,0.08256755]
[1724092754644,0.55,2611.5,2611.1,3.91234755]
[1724092754872,0.55,2611.5,2611.1,4.98657431]
[1724092755646,0.55,2611.5,2611.3,3.82949]
[1724092755846,0.55,2611.5,2611.3,3.82945]
[1724092756168,0.55,2611.5,2611.4,0.08210561]
[1724092756369,11.2061791,2611.5,2611.4,0.08210561]
[1724092756576,2.3151,2611.2,2610.8,3.0]
[1724092756771,2.2,2611.1,2610.8,3.0]
[1724092756968,2.2,2611.1,2610.9,0.08207441]
[1724092757169,0.55,2611.1,2610.9,0.08207441]
[1724092757554,0.55,2611.1,2610.9,3.91214441]
[1724092757768,0.55,2611.1,2610.9,5.72338285]
[1724092758683,0.55,2611.1,2611.0,3.82995]
[1724092758853,0.55,2611.1,2611.0,3.91207434]
[1724092760255,0.55,2611.1,2611.0,7.74202434]
[1724092760469,0.55,2611.1,2611.0,3.91207434]
[1724092760671,0.55,2611.1,2611.0,5.16741362]
[1724092761960,0.55,2611.1,2611.0,8.99736362]
[1724092762768,2.4216,2611.5,2611.1,3.82977]
[1724092763098,0.55,2611.4,2611.1,3.82977]
[1724092763402,0.55,2611.4,2611.2,0.08212434]
[1724092764300,0.55,2611.4,2611.2,4.45857279]
[1724092764496,0.55,2611.5,2611.2,4.45857279]
[1724092765055,0.55,2611.5,2611.3,6.8295]
[1724092765257,0.55,2611.5,2611.3,3.0]
[1724092765560,0.55,2611.5,2611.4,3.91141568]
[1724092765769,0.55,2611.5,2611.4,6.91141568]
[1724092766255,0.55,2611.5,2611.4,10.74077568]
[1724092766498,0.124861,2611.6,2611.5,3.82921]
[1724092766825,0.124861,2611.6,2611.5,16.93933]
[1724092767026,0.124861,2611.6,2611.5,19.50389764]
[1724092769710,0.124861,2611.6,2611.5,23.33310764]
[1724092770114,0.124861,2611.6,2611.5,27.29310764]
[1724092770616,0.124861,2611.6,2611.5,62.29310764]
[1724092771914,0.124861,2611.6,2611.5,19.50389764]
[1724092773512,0.124861,2611.6,2611.5,23.33310764]
[1724092773877,2.00198021,2613.1,2612.3,2.4202]
[1724092774083,2.47,2613.2,2612.8,3.82719]
[1724092774782,2.47,2613.2,2612.9,0.08135062]
[1724092776885,0.55,2613.1,2612.7,3.82744]
[1724092777084,0.55,2613.1,2613.0,0.08135062]
[1724092777316,0.55,2613.1,2612.5,11.19773]
[1724092777513,0.55,2613.1,2613.0,0.08135062]
[1724092777820,4.37694,2613.1,2612.6,3.0]
[1724092778021,10.50671,2613.1,2613.0,0.08053979]
[1724092778186,6.67974,2613.1,2612.6,3.0]
[1724092778381,6.67974,2613.1,2613.0,0.08053979]
[1724092778625,6.67974,2613.1,2612.6,3.0]
[1724092778626,3.82743,2612.8,2612.6,3.0]
[1724092778810,0.55,2612.7,2612.6,3.0]
[1724092779194,4.37733,2612.8,2612.0,11.19836]
[1724092779397,2.3028,2612.7,2612.1,9.164066]
[1724092779591,0.55,2612.6,2612.1,9.164066]
[1724092779788,0.55,2612.6,2612.2,7.65623]
[1724092779992,0.55,2612.6,2612.3,3.0]
[1724092780611,0.83528,2612.6,2612.0,7.37]
[1724092780808,2.3028,2612.3,2611.7,3.82884]
[1724092781015,0.55,2612.2,2611.8,3.8287]
[1724092781752,2.3028,2612.3,2611.8,7.65739]
[1724092781927,2.3028,2612.3,2611.9,3.82862]
[1724092782252,2.3028,2612.3,2612.0,3.0]
[1724092782818,0.55,2612.2,2611.8,4.013819]
[1724092783218,0.55,2612.2,2611.8,1.013819]
[1724092783757,0.55,2612.2,2611.8,4.842489]
[1724092783931,0.55,2612.2,2611.9,4.1671379]
[1724092785031,0.55,2612.4,2611.9,4.1671379]
[1724092785636,4.37799,2612.4,2611.9,4.1671379]
[1724092785972,4.37799,2612.4,2611.9,1.1671379]
[1724092786172,4.37799,2612.4,2612.0,3.0]
[1724092786332,4.37799,2612.4,2611.9,1.1671379]
[1724092786765,4.37797,2612.4,2611.9,1.1671379]
[1724092787368,4.37797,2612.4,2612.0,0.79958479]
[1724092787671,0.55,2612.4,2612.0,0.79958479]
[1724092787871,0.55,2612.4,2612.0,3.79958479]
[1724092788035,0.55,2612.5,2612.0,7.62806479]
[1724092788230,0.55,2612.5,2612.1,1.26238327]
[1724092788643,0.55,2612.5,2612.0,3.0]
[1724092788972,6.23787,2612.2,2611.8,3.0]
[1724092789267,3.82856,2612.0,2611.7,3.0]
[1724092789468,7.65684,2612.1,2611.6,3.0]
[1724092789669,2.4096,2611.8,2611.5,7.37]
[1724092790188,6.2381,2612.0,2611.5,7.37]
[1724092790329,0.55,2611.9,2611.5,7.37]
[1724092790769,0.55,2611.9,2611.5,11.19921]
[1724092790976,0.55,2611.9,2611.6,4.502849]
[1724092791175,6.23765,2612.3,2611.7,3.82885]
[1724092791500,3.82826,2612.2,2611.6,8.331779]
[1724092791785,2.3793,2611.9,2611.6,3.0]
[1724092791931,2.3793,2611.9,2611.5,3.0]
[1724092792481,6.2075,2612.2,2611.5,3.0]
[1724092792685,0.55,2612.1,2611.6,4.59019627]
[1724092793371,0.55,2612.1,2611.6,0.76125627]
[1724092793577,4.37844,2612.1,2611.6,0.76125627]
[1724092793738,0.55,2612.1,2611.6,4.59030627]
[1724092793932,0.55,2612.1,2611.6,4.59025627]
[1724092794171,0.55,2612.1,2611.7,7.58781563]
[1724092794477,0.55,2612.1,2611.7,3.75902563]
[1724092794635,0.55,2612.1,2611.8,0.07833127]
[1724092794841,0.55,2612.1,2611.7,7.58786563]
[1724092795163,0.55,2612.1,2611.8,0.07833127]
[1724092795475,0.55,2612.1,2611.7,3.75902563]
[1724092795662,0.55,2612.1,2611.9,0.07833127]
[1724092795866,0.55,2612.1,2611.7,3.0]
[1724092795867,6.22621,2612.0,2611.7,3.0]
[1724092796066,6.22621,2612.0,2611.4,6.82925]
[1724092796265,0.55,2611.9,2611.4,6.82925]
[1724092797149,0.55,2611.9,2611.4,10.65854]
[1724092797551,0.55,2611.9,2611.4,6.82925]
[1724092797753,0.55,2611.9,2611.5,0.682925]
[1724092798744,2.3976,2612.0,2611.6,3.82893]
[1724092799060,2.3976,2612.0,2611.7,3.0]
[1724092799808,2.3976,2612.0,2611.4,3.0]
[1724092799809,2.3284,2611.8,2611.4,3.0]
[1724092799972,2.3284,2611.8,2611.4,0.682956]
[1724092800161,2.3284,2611.8,2611.1,3.82971]
[1724092800359,2.3284,2611.8,2611.3,3.82943]
[1724092800548,2.3284,2611.8,2611.4,3.0]
[1724092800780,0.55,2611.7,2611.4,3.0]
[1724092801653,0.55,2611.7,2611.4,6.82933]
[1724092801854,0.55,2611.7,2611.5,0.682933]
[1724092802060,0.55,2611.7,2611.4,3.0]
[1724092802381,0.55,2611.7,2611.4,3.82923]
[1724092802694,0.55,2611.7,2611.5,6.82914]
[1724092803691,0.55,2611.8,2611.5,6.82914]
[1724092806006,0.55,2611.8,2611.5,7.894997]
[1724092806301,0.55,2611.8,2611.5,7.894987]
[1724092807791,0.55,2611.8,2611.6,0.07599421]
[1724092808864,2.4061,2612.3,2611.9,3.82856]
[1724092809204,2.80146366,2612.9,2611.6,2.48469421]
[1724092809205,2.4061,2612.5,2612.2,3.82812]
[1724092809701,2.4061,2612.5,2612.3,0.07599421]
[1724092809868,2.4061,2612.5,2612.2,3.82812]
[1724092810070,2.4061,2612.5,2612.4,0.07599421]
[1724092810285,2.4061,2612.5,2612.2,3.82812]
[1724092810479,2.00104547,2612.7,2612.4,0.07319331]
[1724092810696,4.40714547,2612.9,2612.4,3.82778]
[1724092810989,2.4061,2612.8,2612.5,0.07319331]
[1724092811207,6.23341,2612.8,2612.5,0.07319331]
[1724092811407,7.43955755,2612.8,2612.3,3.0]
[1724092811705,3.82766,2612.6,2612.3,3.0]
[1724092811912,3.0403,2612.5,2612.4,0.0730688]
[1724092812418,3.0403,2612.5,2612.0,6.82845]
[1724092812578,3.0403,2612.5,2612.4,0.07301901]
[1724092812916,3.92720055,2612.5,2612.4,0.07301901]
[1724092813215,3.92720055,2612.5,2612.1,3.82833]
[1724092813413,3.0403,2612.5,2612.4,0.07301901]
[1724092813587,3.0403,2612.5,2612.2,3.0]
[1724092813779,3.0403,2612.5,2612.4,0.07301901]
[1724092813979,3.0403,2612.5,2612.3,0.07266411]
[1724092814210,3.0403,2612.5,2612.3,3.82804]
[1724092814211,0.55,2612.5,2612.3,3.82804]
[1724092814371,0.55,2612.7,2612.4,0.07266411]
[1724092815204,0.55,2612.7,2612.2,6.82818]
[1724092815400,0.55,2612.7,2612.5,0.07270768]
[1724092815589,0.55,2612.7,2612.3,3.82802]
[1724092815785,0.55,2612.7,2612.6,0.07270768]
[1724092816488,0.55,2612.7,2612.4,3.82782]